bitfinex-derivatives/quotes_SOLF0:USTF0_20251219
["timestamp","ask_amount","ask_price","bid_price","bid_amount"]
[1766160085984,26.46,125.21,125.12,31.556]
[1766160086177,26.46,125.21,125.13,24.36]
[1766160086382,0.0586693,125.18,125.16,0.05883079]
[1766160087887,26.46,125.24,125.16,31.61253079]
[1766160088087,26.46,125.24,125.16,31.5537]
[1766160088785,0.05781337,125.21,125.19,0.05081401]
[1766160090082,0.05781337,125.21,125.19,0.00081401]
[1766160090783,0.05781337,125.21,125.13,24.36]
[1766160090975,111.8302,125.25,125.15,24.36]
[1766160090976,26.46,125.25,125.15,24.36]
[1766160091586,26.46,125.25,125.17,24.36]
[1766160091785,0.05535423,125.22,125.2,0.05568866]
[1766160093392,26.46,125.25,125.2,0.05568866]
[1766160093584,7.188,125.27,125.2,0.05568866]
[1766160093890,33.648,125.27,125.2,0.05568866]
[1766160094186,26.46,125.27,125.2,0.05568866]
[1766160094394,0.05381448,125.25,125.2,0.05568866]
[1766160094582,0.05381448,125.25,125.2,25.73568866]
[1766160094782,0.05381448,125.25,125.2,32.92718866]
[1766160094982,0.05381448,125.25,125.2,25.73568866]
[1766160095193,0.05381448,125.25,125.2,0.05568866]
[1766160098095,24.40381448,125.25,125.16,32.8737]
[1766160098280,24.35,125.25,125.16,80.0337]
[1766160098485,24.35,125.25,125.17,25.68]
[1766160098685,31.5396,125.24,125.17,25.68]
[1766160099095,24.35,125.23,125.14,32.8749]
[1766160099300,24.35,125.21,125.13,47.16]
[1766160099793,24.35,125.21,125.13,80.0355]
[1766160099994,31.5403,125.23,125.14,25.68]
[1766160100194,0.05466138,125.2,125.17,0.0527266]
[1766160103291,31.5391,125.25,125.17,25.7327266]
[1766160103595,31.5391,125.25,125.17,25.68]
[1766160104001,24.35,125.25,125.17,32.8732]
[1766160104299,0.06145522,125.22,125.2,0.06068532]
[1766160105190,24.35,125.28,125.2,0.06068532]
[1766160105387,24.35,125.28,125.19,25.68]
[1766160106096,24.35,125.28,125.22,0.05083002]
[1766160106294,0.05720072,125.25,125.22,0.05083002]
[1766160109399,24.35,125.29,125.22,0.05083002]
[1766160109901,24.35,125.32,125.23,32.8697]
[1766160110098,24.35,125.32,125.23,25.68]
[1766160110292,136.1172,125.32,125.26,0.00287878]
[1766160110494,31.5362,125.3,125.26,0.00287878]
[1766160111292,7.2367,125.29,125.26,0.00287878]
[1766160111692,0.05,125.29,125.26,0.00287878]
[1766160112898,24.35,125.33,125.26,0.00287878]
[1766160113400,24.35,125.33,125.26,32.87097878]
[1766160114506,24.35,125.33,125.26,0.00287878]
[1766160116206,24.35,125.33,125.26,25.68287878]
[1766160117100,71.45,125.35,125.26,25.68287878]
[1766160117298,24.35,125.35,125.29,0.05919545]
[1766160118205,24.35,125.35,125.29,7.24549545]
[1766160118405,24.35,125.38,125.29,25.73919545]
[1766160118607,24.35,125.38,125.32,0.05690038]
[1766160118796,24.35,125.37,125.32,0.05690038]
[1766160118998,24.35,125.37,125.26,72.82]
[1766160119194,24.35,125.36,125.26,25.68]
[1766160119491,111.722,125.37,125.26,25.68]
[1766160119492,24.35,125.34,125.26,25.68]
[1766160119909,0.05174552,125.31,125.29,0.0522271]
[1766160120504,24.35,125.34,125.29,0.0522271]
[1766160120802,31.5327,125.36,125.29,0.0522271]
[1766160121106,24.35,125.35,125.26,32.8678]
[1766160121405,24.35,125.35,125.27,32.8675]
[1766160121599,24.35,125.35,125.29,0.05828178]
[1766160121999,24.35,125.39,125.29,0.05828178]
[1766160122200,24.35,125.39,125.33,0.06042815]
[1766160122602,25.69947457,125.4,125.33,0.06042815]
[1766160123107,24.35,125.4,125.33,7.24432815]
[1766160123606,24.35,125.4,125.33,0.06042815]
[1766160125508,24.35,125.4,125.33,0.00042815]
[1766160125911,24.37,125.38,125.33,0.00042815]
[1766160126106,24.37,125.38,125.3,7.1857]
[1766160126305,0.05770959,125.35,125.33,0.05517676]
[1766160126708,24.37,125.38,125.33,0.05517676]
[1766160127211,7.1789,125.43,125.33,0.05517676]
[1766160127411,24.37,125.42,125.32,33.3645]
[1766160127909,24.37,125.4,125.36,0.00389949]
[1766160129011,0.05127861,125.39,125.36,0.00389949]
[1766160129910,24.37,125.43,125.36,26.18389949]
[1766160131007,24.37,125.41,125.36,0.00389949]
[1766160131597,71.43,125.44,125.36,0.00389949]
[1766160131800,24.37,125.44,125.39,0.05525245]
[1766160133612,71.43,125.47,125.39,26.23525245]
[1766160133816,71.43,125.47,125.42,0.05059193]
[1766160134211,24.34034123,125.57,125.42,26.23059193]
[1766160134512,24.37,125.57,125.48,0.05828194]
[1766160134713,24.37,125.57,125.46,48.26]
[1766160135011,24.37,125.57,125.51,0.05543403]
[1766160137013,24.37,125.56,125.44,7.1774]
[1766160137217,24.37,125.55,125.44,7.1774]
[1766160137517,24.37,125.55,125.45,111.6444]
[1766160137717,24.37,125.55,125.44,111.6564]
[1766160138108,0.05185978,125.51,125.48,0.05418556]
[1766160138715,24.33185978,125.51,125.48,0.00418556]
[1766160139016,22.944853,125.51,125.48,0.00418556]
[1766160139215,22.944853,125.51,125.41,47.08]
[1766160139719,22.944853,125.51,125.39,111.6986]
[1766160139933,22.944853,125.51,125.4,118.8727]
[1766160140215,0.05513876,125.47,125.44,0.05440089]
[1766160140715,0.05513876,125.47,125.44,0.00440089]
[1766160140914,0.05513876,125.47,125.39,111.6994]
[1766160141115,24.28,125.5,125.39,111.6994]
[1766160141320,24.28,125.5,125.4,7.1798]
[1766160141621,24.28,125.5,125.4,118.8722]
[1766160142021,0.05335268,125.46,125.44,0.0577956]
[1766160144223,0.05335268,125.46,125.4,25.01]
[1766160145308,0.05335268,125.46,125.42,0.05126674]
[1766160145623,0.00335268,125.46,125.42,25.06126674]
[1766160146221,24.28,125.51,125.42,25.06126674]
[1766160146521,47.02,125.53,125.45,25.01]
[1766160146827,291.0,125.59,125.45,25.01]
[1766160146828,24.28,125.58,125.46,25.01]
[1766160147219,0.06006992,125.53,125.51,0.05116013]
[1766160147431,0.05829095,125.53,125.51,0.05116013]
[1766160148114,24.33829095,125.53,125.43,25.01]
[1766160148320,24.28,125.53,125.44,72.09]
[1766160149012,24.28,125.52,125.47,0.05187001]
[1766160149223,0.06018661,125.5,125.47,0.05187001]
[1766160152027,0.00018661,125.5,125.47,0.05187001]
[1766160152924,24.28,125.56,125.47,25.06187001]
[1766160153127,24.28,125.56,125.47,25.01]
[1766160153828,71.3,125.59,125.49,25.01]
[1766160154034,0.05692011,125.55,125.53,0.06041717]
[1766160155734,23.82,125.62,125.53,23.90041717]
[1766160155933,23.82,125.62,125.53,23.84]
[1766160156635,0.05450816,125.59,125.56,0.05721605]
[1766160156837,0.05450816,125.59,125.5,23.84]
[1766160157040,23.82,125.62,125.51,31.0137]
[1766160157336,23.82,125.62,125.52,23.84]
[1766160157728,0.059136,125.58,125.49,70.88]
[1766160158030,23.82,125.59,125.49,70.88]
[1766160158231,19.83445499,125.59,125.5,8.04114449]
[1766160158428,13.85659185,125.59,125.51,8.04114449]
[1766160158624,13.85659185,125.59,125.52,8.04114449]
[1766160158935,0.05254622,125.57,125.54,0.06035713]
[1766160159131,0.05254622,125.57,125.55,8.04114449]
[1766160159342,0.05254622,125.57,125.56,0.00114449]
[1766160160039,9.32234278,125.62,125.54,0.06035713]
[1766160160229,47.0,125.63,125.53,111.5768]
[1766160160429,70.82,125.63,125.54,111.5669]
[1766160160633,70.82,125.63,125.54,135.4069]
[1766160161040,0.05565482,125.6,125.57,0.06011235]
[1766160161537,23.87565482,125.6,125.53,7.1725]
[1766160161728,23.82,125.6,125.52,47.04]
[1766160161932,23.82,125.6,125.51,23.84]
[1766160162136,23.82,125.6,125.52,23.84]
[1766160162523,23.87088875,125.57,125.55,0.05434921]
[1766160162726,23.82,125.57,125.46,23.84]
[1766160162933,23.82,125.57,125.47,23.84]
[1766160163532,23.82,125.57,125.47,31.0161]
[1766160163736,0.05738794,125.53,125.51,0.05507377]
[1766160164437,0.05738794,125.53,125.47,23.84]
[1766160165226,47.0,125.63,125.47,23.84]
[1766160165227,30.9885,125.61,125.5,23.84]
[1766160165542,23.82,125.61,125.52,23.84]
[1766160165729,23.82,125.57,125.47,23.84]
[1766160166242,0.05155806,125.53,125.51,0.060445]
[1766160168442,23.82,125.52,125.42,23.84]
[1766160169634,0.05501221,125.48,125.46,0.05529087]
[1766160170135,23.82,125.52,125.46,0.05529087]
[1766160170340,7.1718,125.55,125.46,23.89529087]
[1766160170543,7.1718,125.55,125.46,23.84]
[1766160170744,142.5515,125.55,125.46,23.84]
[1766160171135,0.05972104,125.52,125.49,0.05329692]
[1766160171646,23.87972104,125.52,125.43,23.84]
[1766160171942,23.82,125.52,125.43,23.84]
[1766160172136,23.82,125.55,125.44,23.84]
[1766160172331,23.82,125.55,125.45,31.81262178]
[1766160172542,0.05050232,125.51,125.49,0.05605974]
[1766160172744,23.82,125.55,125.5,7.97262178]
[1766160172932,23.82,125.55,125.51,7.97262178]
[1766160173138,19.83343947,125.55,125.52,0.00262178]
[1766160173449,46.98,125.57,125.46,23.84]
[1766160173744,0.05611654,125.53,125.5,0.05956958]
[1766160176137,23.82,125.61,125.5,23.89956958]
[1766160176347,23.82,125.61,125.51,23.84]
[1766160177146,0.05675911,125.57,125.55,0.06052687]
[1766160178844,0.05675911,125.57,125.48,23.84]
[1766160179043,23.82,125.57,125.48,23.84]
[1766160179442,9.32234278,125.6,125.49,23.84]
[1766160179643,23.82,125.59,125.48,111.6194]
[1766160179843,23.82,125.59,125.49,23.84]
[1766160180150,0.05267727,125.55,125.53,0.00120349]
[1766160180343,23.82,125.57,125.53,0.00120349]
[1766160180549,23.82,125.6,125.53,0.00120349]
[1766160181048,0.05028438,125.58,125.53,0.00120349]
[1766160184754,0.00028438,125.58,125.54,25.15]
[1766160185147,0.00028438,125.58,125.55,7.53139849]
[1766160185349,0.00028438,125.58,125.56,7.53139849]
[1766160185650,24.21,125.61,125.57,7.53139849]
[1766160185854,71.19,125.64,125.58,7.53139849]
[1766160186052,24.21,125.64,125.59,7.53139849]
[1766160186353,24.21,125.64,125.6,7.53139849]
[1766160186551,144.2939621,125.68,125.55,25.15]
[1766160186552,0.05223109,125.63,125.61,7.5886399]
[1766160186749,25.57899458,125.67,125.57,25.15]
[1766160186750,24.21,125.7,125.62,7.53139849]
[1766160186953,24.21,125.7,125.63,7.53139849]
[1766160187257,24.21,125.69,125.64,7.53139849]
[1766160187554,24.21,125.69,125.65,7.5288638]
[1766160187755,0.05412689,125.68,125.6,25.15]
[1766160187951,24.21,125.69,125.61,32.67879635]
[1766160188156,40.69444278,125.72,125.62,32.67879635]
[1766160188346,40.69444278,125.72,125.59,158.5414]
[1766160188347,24.21,125.7,125.63,7.52879635]
[1766160188553,24.21,125.69,125.64,7.52879635]
[1766160188755,0.05058436,125.68,125.65,7.58495243]
[1766160188956,31.3739,125.69,125.59,72.17]
[1766160189154,111.4462,125.68,125.59,25.15]
[1766160189454,24.21,125.67,125.59,25.15]
[1766160189656,7.1656,125.66,125.59,25.15]
[1766160189857,0.05962803,125.64,125.61,0.05328972]
[1766160190158,0.05962803,125.64,125.61,0.00328972]
[1766160190363,0.05962803,125.64,125.56,25.15]
[1766160190562,135.6763,125.66,125.56,25.15]
[1766160191058,24.21,125.65,125.56,25.15]
[1766160191262,111.4663,125.66,125.59,25.20142408]
[1766160191263,7.1656,125.66,125.59,25.20142408]
[1766160191650,135.677,125.66,125.59,0.05142408]
[1766160191964,7.1672,125.63,125.59,0.05142408]
[1766160192262,0.05301801,125.62,125.59,0.05142408]
[1766160193163,7.22101801,125.62,125.56,25.15]
[1766160193558,7.22101801,125.62,125.55,25.15]
[1766160193761,7.168,125.62,125.55,25.15]
[1766160193961,167.75854278,125.67,125.57,25.15]
[1766160193962,71.19,125.67,125.57,25.15]
[1766160194458,0.00026152,125.63,125.61,0.05380218]
[1766160196361,135.5976,125.75,125.63,25.15]
[1766160196563,7.1617,125.73,125.63,25.15]
[1766160197367,0.05065338,125.69,125.67,0.05684957]
[1766160198763,25.31,125.75,125.67,0.05684957]
[1766160198965,25.31,125.75,125.66,7.1652]
[1766160199175,25.31,125.75,125.66,24.71]
[1766160199756,0.06110236,125.72,125.69,0.05611269]
[1766160199952,0.06110236,125.72,125.63,24.71]
[1766160200160,25.31,125.72,125.63,71.71]
[1766160201167,0.05119453,125.69,125.66,0.05639893]
[1766160202361,0.05119453,125.69,125.67,7.60248944]
[1766160202666,0.05119453,125.69,125.68,7.60248944]
[1766160203469,0.05119453,125.69,125.66,0.05639893]
[1766160203668,0.05119453,125.69,125.62,47.0]
[1766160203966,0.05119453,125.69,125.63,31.8767]
[1766160204667,0.00119453,125.69,125.65,31.9358494]
[1766160204870,0.00119453,125.69,125.65,24.7701494]
[1766160205565,0.00119453,125.69,125.67,7.1646]
[1766160207059,0.00119453,125.69,125.65,31.9357494]
[1766160208874,0.00119453,125.69,125.66,7.1652]
[1766160209665,0.00119453,125.69,125.65,24.7701494]
[1766160210268,0.00119453,125.69,125.66,7.1652]
[1766160210961,0.00119453,125.69,125.66,31.8752]
[1766160211166,0.00119453,125.69,125.67,7.1646]
[1766160212867,0.00119453,125.69,125.67,31.8746]
[1766160213076,0.00119453,125.69,125.68,24.71]
[1766160213273,25.31,125.77,125.69,31.8733]
[1766160213771,1.3305659,125.79,125.7,31.8728]
[1766160214159,0.05543937,125.76,125.73,0.06030737]
[1766160214474,26.18,125.75,125.64,24.52]
[1766160214673,26.18,125.74,125.62,24.52]
[1766160214972,7.1621,125.72,125.63,24.52]
[1766160215269,26.18,125.74,125.63,24.52]
[1766160215475,33.3411,125.74,125.64,32.00330251]
[1766160215663,0.05691864,125.7,125.67,0.05804922]
[1766160215968,26.18,125.74,125.68,7.48330251]
[1766160216270,73.1,125.77,125.69,7.48330251]
[1766160216460,73.1,125.77,125.7,7.48330251]
[1766160216667,26.18,125.77,125.67,7.1647]
[1766160216970,0.05702938,125.73,125.71,0.05138727]
[1766160217170,0.05928994,125.73,125.71,0.05053687]
[1766160218380,0.05928994,125.73,125.68,71.5]
[1766160218381,27.83928994,125.73,125.65,24.52]
[1766160218675,26.18,125.73,125.65,71.5]
[1766160218872,111.3774,125.76,125.66,24.52]
[1766160219071,26.18,125.78,125.68,24.52]
[1766160219573,0.05947059,125.74,125.72,0.05546015]
[1766160220163,73.1,125.81,125.72,0.05546015]
[1766160220365,73.1,125.81,125.71,24.52]
[1766160220566,33.3376,125.8,125.71,31.6823]
[1766160220975,26.18,125.79,125.71,24.52]
[1766160221167,0.05081154,125.76,125.74,0.05523385]
[1766160222272,0.05081154,125.76,125.68,71.5]
[1766160222476,26.18,125.79,125.68,71.5]
[1766160222677,7.1587,125.78,125.68,71.5]
[1766160223176,33.3387,125.78,125.68,71.5]
[1766160223479,0.05585264,125.74,125.72,0.0591239]
[1766160225476,26.18,125.78,125.72,0.0591239]
[1766160225977,26.18,125.77,125.67,0.38824]
[1766160226282,26.18,125.76,125.67,0.38824]
[1766160226582,7.1606,125.75,125.67,24.90824]
[1766160226976,0.06110801,125.72,125.67,24.90824]
[1766160227184,0.06110801,125.72,125.7,0.05580642]
[1766160228075,26.18,125.79,125.7,0.05580642]
[1766160228276,7.1587,125.78,125.69,24.52]
[1766160228477,26.18,125.77,125.67,24.90824]
[1766160229088,0.05907597,125.73,125.71,0.05711968]
[1766160230084,0.05907597,125.73,125.67,0.38824]
[1766160230584,0.05907597,125.73,125.67,24.90824]
[1766160231082,0.05907597,125.73,125.69,0.05478944]
[1766160232589,7.1569,125.81,125.72,24.52]
[1766160232775,33.3369,125.81,125.72,24.52]
[1766160232975,26.18,125.81,125.72,24.52]
[1766160233180,46.92,125.83,125.74,24.52]
[1766160233181,54.0761,125.83,125.74,24.52]
[1766160233390,0.05640658,125.8,125.69,24.52]
[1766160233590,26.18,125.81,125.69,24.52]
[1766160233886,26.18,125.73,125.67,0.38824]
[1766160234093,26.18,125.72,125.67,0.38824]
[1766160234480,0.05187803,125.71,125.68,0.05707165]
[1766160234677,0.05187803,125.71,125.62,24.52]
[1766160234678,26.23187803,125.71,125.62,24.52]
[1766160234892,26.18,125.71,125.62,24.52]
[1766160235290,33.3426,125.71,125.62,31.6875]
[1766160235489,33.3426,125.71,125.63,24.52]
[1766160235684,0.05969077,125.68,125.66,0.05750403]
[1766160238601,26.18,125.77,125.67,24.52]
[1766160239604,26.23193437,125.73,125.71,0.00448892]
[1766160239793,0.05193437,125.73,125.71,0.00448892]
[1766160240400,0.05193437,125.73,125.65,24.52]
[1766160240608,7.161,125.74,125.65,24.52]
[1766160240609,73.1,125.74,125.65,24.52]
[1766160241205,26.18,125.73,125.62,24.52]
[1766160241394,26.18,125.73,125.66,0.0526234]
[1766160241395,0.05446694,125.69,125.66,0.0526234]
[1766160241596,26.23446694,125.69,125.59,24.52]
[1766160241808,26.18,125.69,125.59,24.52]
[1766160242200,26.18,125.68,125.59,24.52]
[1766160242708,0.06051603,125.65,125.62,0.05700407]
[1766160242905,0.06051603,125.65,125.56,31.6908]
[1766160243099,26.18,125.65,125.56,24.52]
[1766160243298,73.1,125.64,125.56,24.52]
[1766160243502,26.18,125.63,125.53,24.52]
[1766160243896,0.05308909,125.59,125.57,0.05511536]
[1766160244104,0.00308909,125.59,125.57,0.05511536]
[1766160245012,0.00308909,125.59,125.51,25.91]
[1766160245208,24.68,125.57,125.45,111.6397]
[1766160245408,136.2222,125.57,125.46,25.91]
[1766160245801,0.05410788,125.53,125.5,0.05505375]
[1766160246404,46.94,125.6,125.5,25.96505375]
[1766160246706,46.94,125.6,125.5,25.91]
[1766160247109,24.68,125.58,125.47,25.91]
[1766160247514,0.06077189,125.54,125.51,0.05440323]
[1766160249116,7.1697,125.59,125.51,0.05440323]
[1766160249305,7.1697,125.59,125.5,25.91]
[1766160250108,0.05621955,125.56,125.53,0.06126129]
[1766160251409,0.05621955,125.56,125.47,25.91]
[1766160251713,136.226,125.57,125.47,25.91]
[1766160251909,118.743,125.54,125.47,25.91]
[1766160252118,118.743,125.54,125.42,25.91]
[1766160252119,24.68,125.53,125.42,25.91]
[1766160252616,0.00453613,125.49,125.46,25.96631204]
[1766160252814,71.64,125.56,125.46,25.91]
[1766160253311,24.68,125.56,125.46,25.91]
[1766160253514,24.68,125.56,125.5,0.05416918]
[1766160254613,0.05323491,125.54,125.5,0.05416918]
[1766160256320,24.73323491,125.54,125.43,25.91]
[1766160256508,190.3482,125.58,125.46,25.91]
[1766160256710,31.8502,125.58,125.48,25.91]
[1766160257120,0.05947718,125.54,125.52,0.05229818]
[1766160258016,0.05947718,125.54,125.48,25.91]
[1766160258219,25.11947718,125.54,125.45,26.03]
[1766160258417,72.04,125.54,125.45,26.03]
[1766160258815,79.2125,125.54,125.45,26.03]
[1766160259019,0.05440946,125.51,125.48,0.05804648]
[1766160259726,0.00440946,125.51,125.48,0.05804648]
[1766160260023,111.5223,125.6,125.48,0.05804648]
[1766160260024,72.04,125.59,125.5,26.03]
[1766160260912,0.05130105,125.56,125.53,0.05923093]
[1766160262726,25.06,125.62,125.53,0.05923093]
[1766160262932,25.06,125.62,125.51,26.03]
[1766160263127,25.06,125.6,125.51,26.03]
[1766160263822,0.06001759,125.57,125.54,0.06123123]
[1766160264331,1.759e-05,125.57,125.54,0.06123123]
[1766160265428,79.2075,125.63,125.54,0.06123123]
[1766160265633,25.06,125.66,125.54,137.5956]
[1766160265925,25.06,125.66,125.56,26.03]
[1766160266239,111.4605,125.67,125.58,26.03]
[1766160266240,7.1649,125.67,125.58,26.03]
[1766160266419,25.06,125.67,125.58,26.03]
[1766160266618,0.0571812,125.64,125.61,0.05425144]
[1766160267620,0.0571812,125.64,125.61,0.00425144]
[1766160270631,25.1171812,125.64,125.61,0.00425144]
[1766160270937,32.2838812,125.64,125.54,26.03]
[1766160271233,25.06,125.64,125.54,26.03]
[1766160271429,25.06,125.64,125.55,33.2013]
[1766160271636,7.1657,125.66,125.57,26.03]
[1766160271823,0.05213964,125.63,125.6,0.05879388]
[1766160272022,72.04,125.68,125.57,26.03]
[1766160272631,7.165,125.67,125.57,26.03]
[1766160272918,0.05930053,125.63,125.61,0.05028601]
[1766160273123,72.04,125.68,125.61,0.05028601]
[1766160273623,136.5147,125.67,125.61,0.05028601]
[1766160273824,7.1661,125.65,125.61,0.05028601]
[1766160274025,0.05393053,125.64,125.61,0.05028601]
[1766160274226,0.05393053,125.64,125.61,0.00028601]
[1766160274940,26.02,125.7,125.61,26.57028601]
[1766160275233,26.02,125.7,125.61,26.57]
[1766160275629,7.1638,125.69,125.61,26.57]
[1766160275938,26.02,125.68,125.58,35.86226424]
[1766160276139,0.05723281,125.64,125.62,0.05835559]
[1766160278133,0.05723281,125.64,125.58,26.57]
[1766160278533,0.05723281,125.64,125.55,33.7413]
[1766160278835,26.02,125.66,125.56,26.57]
[1766160279344,0.05443565,125.62,125.6,0.05558644]
[1766160280444,46.96,125.67,125.6,0.05558644]
[1766160280742,26.02,125.7,125.61,26.57]
[1766160281243,26.02,125.69,125.61,26.57]
[1766160281446,0.05963386,125.66,125.64,0.05718225]
[1766160281637,0.05896156,125.66,125.64,0.060479]
[1766160283552,7.1635,125.7,125.64,0.060479]
[1766160284649,0.05317531,125.68,125.64,0.060479]
[1766160285644,26.02,125.71,125.64,0.060479]
[1766160285851,46.96,125.72,125.64,26.630479]
[1766160286051,26.02,125.74,125.64,73.57]
[1766160286242,33.1809,125.74,125.65,33.7358]
[1766160286655,0.05141625,125.71,125.68,0.05042054]
[1766160287263,54.12,125.76,125.68,0.05042054]
[1766160287549,54.12,125.76,125.66,35.85688679]
[1766160287749,54.12,125.76,125.67,26.57]
[1766160288147,26.02,125.77,125.66,9.28688679]
[1766160288148,0.00031097,125.73,125.7,26.62362295]
[1766160288342,7.1588,125.78,125.7,26.57]
[1766160288544,72.98,125.8,125.7,26.57]
[1766160288840,7.1583,125.79,125.7,26.57]
[1766160289447,26.06083371,125.76,125.73,0.00090461]
[1766160291345,0.04083371,125.76,125.73,0.00090461]
[1766160292254,0.04083371,125.76,125.69,26.57]
[1766160292553,137.43673371,125.76,125.66,73.55]
[1766160292754,137.3959,125.76,125.66,73.55]
[1766160292961,26.02,125.75,125.66,73.55]
[1766160293148,137.405,125.75,125.66,73.55]
[1766160293452,0.05391339,125.72,125.69,0.05809674]
[1766160297646,0.05391339,125.72,125.64,73.55]
[1766160297953,26.02,125.72,125.63,26.57]
[1766160298351,7.1626,125.71,125.63,26.57]
[1766160298548,0.05586386,125.68,125.66,0.05561408]
[1766160299052,0.05586386,125.68,125.63,26.57]
[1766160299053,0.05586386,125.68,125.6,26.57]
[1766160299249,26.02,125.7,125.6,26.57]
[1766160299250,26.02,125.69,125.6,26.57]
[1766160299453,26.02,125.68,125.6,26.57]
[1766160299646,7.165,125.67,125.6,26.57]
[1766160300042,137.4669,125.68,125.61,6.19518699]
[1766160300247,0.05157724,125.65,125.62,6.25165185]
[1766160300472,0.05157724,125.65,125.62,0.05646486]
[1766160300646,0.05157724,125.65,125.57,26.57]
[1766160300647,7.168,125.62,125.57,26.57]
[1766160300851,7.168,125.62,125.58,9.632e-05]
[1766160301152,7.168,125.62,125.5,111.5993]
[1766160301153,7.1697,125.59,125.51,26.57]
[1766160301657,0.05995585,125.56,125.54,0.00198569]
[1766160301956,0.05995585,125.56,125.48,26.57]
[1766160302161,161.23671578,125.59,125.48,26.57]
[1766160302458,26.02,125.58,125.48,26.57]
[1766160302845,0.05564801,125.54,125.48,26.57]
[1766160303058,0.05564801,125.54,125.52,0.05523927]
[1766160303558,0.05564801,125.54,125.45,82.83688679]
[1766160303759,26.02,125.56,125.46,26.57]
[1766160304344,27.25,125.59,125.5,27.55702554]
[1766160304550,27.25,125.59,125.5,27.5]
[1766160304950,138.7747,125.59,125.5,27.5]
[1766160305147,27.25,125.58,125.5,27.5]
[1766160305355,34.4203,125.58,125.48,36.78688679]
[1766160305559,27.25,125.6,125.52,0.0553472]
[1766160305860,27.25,125.58,125.49,27.5]
[1766160306164,145.9531,125.58,125.49,27.5]
[1766160306362,34.4202,125.58,125.49,27.5]
[1766160306561,0.06070721,125.55,125.52,0.05343614]
[1766160307055,98.05433412,125.61,125.52,0.05343614]
[1766160307367,98.05433412,125.61,125.48,120.90308679]
[1766160307368,27.25,125.6,125.5,27.5]
[1766160307655,27.25,125.59,125.5,27.5]
[1766160308059,0.06063269,125.56,125.53,0.05223849]
[1766160309261,46.94,125.61,125.53,0.05223849]
[1766160309462,46.94,125.61,125.51,27.5]
[1766160310465,0.0610054,125.57,125.55,0.0509096]
[1766160312667,0.0610054,125.57,125.48,36.78688679]
[1766160312969,27.25,125.59,125.49,33.65563149]
[1766160313166,27.25,125.59,125.5,6.15563149]
[1766160313368,27.25,125.57,125.51,6.15563149]
[1766160313570,27.25,125.57,125.47,27.5]
[1766160313864,0.0535055,125.53,125.51,0.05149711]
[1766160314065,27.25,125.6,125.51,0.05149711]
[1766160314367,27.25,125.6,125.52,6.15138307]
[1766160314566,27.25,125.58,125.49,27.5]
[1766160314771,27.25,125.58,125.5,6.15137366]
[1766160314973,27.25,125.58,125.49,27.5]
[1766160315170,0.057678,125.55,125.52,0.05103295]
[1766160315369,27.25,125.6,125.52,0.05103295]
[1766160315567,27.25,125.6,125.49,27.5]
[1766160315869,54.1285,125.61,125.51,27.5]
[1766160316067,54.1285,125.61,125.52,6.14911893]
[1766160316273,0.06088791,125.58,125.55,0.05775667]
[1766160316768,0.06088791,125.58,125.51,34.6735]
[1766160316769,0.06088791,125.58,125.51,27.5]
[1766160316970,0.06088791,125.58,125.52,6.14770866]
[1766160317171,0.06088791,125.58,125.51,27.5]
[1766160317375,0.06088791,125.58,125.52,6.14624691]
[1766160317575,0.06088791,125.58,125.51,27.5]
[1766160317774,0.06088791,125.58,125.53,0.05634199]
[1766160320268,25.40088791,125.58,125.48,83.20688679]